[Event "Grand Prix Moscow 2019"]
[Site "Moscow"]
[Date "2019.05.19"]
[Round "1.4"]
[White "Duda, Jan-Krzysztof"]
[Black "So, Wesley"]
[Result "1/2-1/2"]
[ECO "C54"]
[WhiteElo "2728"]
[BlackElo "2754"]
[Annotator "ChessBase"]
[PlyCount "136"]
[EventDate "2019.05.17"]
[EventType "k.o."]
[EventCountry "RUS"]
[SourceTitle "playchess.com"]
[Source "ChessBase"]
[SourceQuality "1"]
[TimeControl "1500+10"]

1. e4 {[%emt 0:00:00]} e5 {[%emt 0:00:00]} 2. Nf3 {[%emt 0:00:00]} Nc6 {[%emt 0:00:00]} 3. Bc4 {[%emt 0:00:00]} Bc5 {[%emt 0:00:01]} 4. c3 {[%emt 0:00:00]} Nf6 {[%emt 0:00:02]} 5. d3 {[%emt 0:00:00]} O-O {[%emt 0:00:02]} 6. a4 {[%emt 0:00:01]} d5 {[%emt 0:00:29]} 7. exd5 {[%emt 0:00:02]} Nxd5 {[%emt 0:00:02]} 8. a5 {[%emt 0:00:02]} a6 {[%emt 0:00:14]} 9. Nbd2 {[%emt 0:00:03]} f6 {[%emt 0:01:47]} 10. Ne4 {[%emt 0:01:04]} Ba7 {[%emt 0:00:10]} 11. Qb3 {[%emt 0:01:54]} Nce7 {[%emt 0:00:03]} 12. O-O {[%emt 0:01:26]} Kh8 {[%emt 0:00:07]} 13. h3 {[%emt 0:00:58]} b5 {[%emt 0:03:16]} 14. axb6 {[%emt 0:00:08]} cxb6 {[%emt 0:00:03]} 15. d4 {[%emt 0:01:32]} exd4 {[%emt 0:02:34]} 16. Nxd4 {[%emt 0:00:49]} b5 {[%emt 0:00:03]} 17. Bd3 {[%emt 0:00:33]} b4 {[%emt 0:01:50]} 18. Rd1 {[%emt 0:01:59]} bxc3 {[%emt 0:01:49]} 19. bxc3 {[%emt 0:00:08]} Rb8 {[%emt 0:00:37]} 20. Qa3 {[%emt 0:01:54]} Bxd4 {[%emt 0:03:27]} 21. cxd4 {[%emt 0:00:03]} Nc6 {[%emt 0:00:10]} 22. Bc4 {[%emt 0:01:45]} Ncb4 {[%emt 0:00:36]} 23. Qg3 {[%emt 0:00:11]} Rb6 {[%emt 0:02:31]} 24. Nc5 {[%emt 0:01:38]} Qd6 {[%emt 0:01:31]} 25. Qf3 {[%emt 0:00:22]} Rd8 {[%emt 0:00:29]} 26. Bb3 {[%emt 0:01:39]} Be6 {[%emt 0:01:10]} 27. Re1 {[%emt 0:01:53]} Bg8 {[%emt 0:00:18]} 28. Re4 {[%emt 0:00:11]} a5 {[%emt 0:01:32]} 29. Bd2 {[%emt 0:01:04]} Nc6 {[%emt 0:00:13]} 30. Bxa5 {[%emt 0:00:52]} Ra8 {[%emt 0:00:54]} 31. Bc3 {[%emt 0:00:09]} Rab8 {[%emt 0:00:01]} 32. Bc2 {[%emt 0:02:15]} Ndb4 {[%emt 0:00:44]} 33. Ba4 {[%emt 0:01:58]} Bd5 {[%emt 0:00:43]} 34. Qf4 {[%emt 0:00:20]} Qxf4 {[%emt 0:00:38]} 35. Rxf4 {[%emt 0:00:02]} Ra8 {[%emt 0:00:01]} 36. Re1 {[%emt 0:00:31]} h6 {[%emt 0:00:20]} 37. Rg4 {[%emt 0:00:46]} Na2 {[%emt 0:00:48]} 38. Bd2 {[%emt 0:00:25]} Rb2 {[%emt 0:00:01]} 39. Bxh6 {[%emt 0:00:54]} gxh6 {[%emt 0:00:01]} 40. Bxc6 {[%emt 0:00:02]} Bxc6 {[%emt 0:00:01]} 41. Re6 {[%emt 0:00:05]} h5 {[%emt 0:00:19]} 42. Rg3 {[%emt 0:00:21]} Nc1 {[%emt 0:00:43]} 43. Rxc6 {[%emt 0:01:22]} Ne2+ {[%emt 0:00:01]} 44. Kh2 {[%emt 0:00:01]} Nxg3 {[%emt 0:00:02]} 45. Kxg3 {[%emt 0:00:01]} h4+ {[%emt 0:00:41]} 46. Kxh4 {[%emt 0:00:25]} Rxf2 {[%emt 0:00:02]} 47. g4 {[%emt 0:00:01]} Kg7 {[%emt 0:00:38]} 48. Kg3 {[%emt 0:00:54]} Rd2 {[%emt 0:00:10]} 49. Rxf6 {[%emt 0:00:13]} Ra3+ {[%emt 0:00:20]} 50. Rf3 {[%emt 0:00:03]} Rxf3+ {[%emt 0:00:06]} 51. Kxf3 {[%emt 0:00:01]} Kf7 {[%emt 0:00:04]} 52. Kf4 {[%emt 0:00:27]} Rxd4+ {[%emt 0:00:04]} 53. Ne4 {[%emt 0:00:02]} Ke6 {[%emt 0:00:26]} 54. Ke3 {[%emt 0:00:10]} Rd1 {[%emt 0:00:26]} 55. h4 {[%emt 0:00:11]} Ke5 {[%emt 0:00:16]} 56. Ng5 {[%emt 0:00:11]} Re1+ {[%emt 0:00:01]} 57. Kf3 {[%emt 0:00:15]} Ra1 {[%emt 0:00:02]} 58. Nf7+ {[%emt 0:00:05]} Kf6 {[%emt 0:00:13]} 59. Nd6 {[%emt 0:00:01]} Ke5 {[%emt 0:00:02]} 60. Nc4+ {[%emt 0:00:03]} Kd4 {[%emt 0:00:01]} 61. Nd6 {[%emt 0:00:31]} Ke5 {[%emt 0:00:02]} 62. Nf7+ {[%emt 0:00:04]} Kf6 {[%emt 0:00:01]} 63. Nd6 {[%emt 0:00:16]} Ke5 {[%emt 0:00:01]} 64. Nc4+ {[%emt 0:00:01]} Kd4 {[%emt 0:00:01]} 65. Nd2 {[%emt 0:00:06]} Ke5 {[%emt 0:00:02]} 66. g5 {[%emt 0:00:12]} Kf5 {[%emt 0:00:24]} 67. Nc4 {[%emt 0:00:02]} Kg6 {[%emt 0:00:53]} 68. Ne3 {[%emt 0:00:19]} Ra3 1/2-1/2